[Event "4NCL 2023-2024"]
[Site "Daventry"]
[Date "2024.05.06"]
[Round "11.8"]
[White "Navrotescu, Andreea"]
[Black "Terbe, Julianna"]
[Result "1-0"]
[ECO "E04"]
[WhiteElo "2222"]
[BlackElo "2276"]
[Annotator "TA"]
[PlyCount "85"]
[EventDate "2023.11.11"]
[EventType "team-tourn"]
[EventCountry "ENG"]
[SourceTitle "playchess.com"]
[Source "ChessBase"]
[SourceQuality "1"]
[TimeControl "40/6000+30:3000+30"]

{[%evp 11,85,0,13,-46,-37,-25,-26,-36,-26,-33,-33,-55,-31,-24,3,12,8,19,48,45,27,15,4,-101,-113,-144,-158,-148,-154,-146,-117,-114,-47,-51,200,198,250,236,251,246,277,267,268,274,269,258,523,463,561,514,552,472,828,540,1012,982,1242,1247,1641,1516,1819,1730,2224,2202,2408,2188,29965,29972,29972,29972,29978,29979,29979,29980,29978,29970]} 1. d4 {[%emt 0:00:03]} d5 {[%emt 0:00:07]} 2. c4 {[%emt 0:00:05]} e6 {[%emt 0:00:03]} 3. Nc3 {[%emt 0:00:09]} c6 {[%emt 0:00:06]} 4. Nf3 {[%emt 0:00:59][%cal Bg1f3,Bf3g5,Bg5e6,Be6f4][%mdl 32]} dxc4 {[%emt 0:00:16]} 5. g3 {[%emt 0:00:08]} Nf6 {[%emt 0:00:38]} 6. Bg2 {[%emt 0:00:09]} b5 {[%emt 0:00:43]} 7. e4 {[%emt 0:00:41]} (7. Ne5 $11) 7... Bb7 {[%emt 0:02:27]} 8. e5 {[%emt 0:00:22]} Nd5 {[%emt 0:00:09]} 9. Ng5 {[%emt 0:00:17] Black has an edge.} h6 {[%emt 0:15:38]} 10. Qh5 {[%emt 0:03:14][%csl Gg5,LRe6,LRf7][%cal Rh5f7]} g6 {[%emt 0:00:23]} (10... hxg5 $2 11. Qxh8 Nxc3 12. bxc3 $18) 11. Qh3 {[%emt 0:00:02]} Be7 {[%emt 0:12:39]} (11... Nd7 $5) 12. Nxe6 {[%emt 0:19:46]} Qc8 {[%emt 0:20:46]} 13. Nf4 {[%emt 0:06:14] And now Qxc8+ would win.} Qxh3 {[%emt 0:03:56]} 14. Nxh3 {[%emt 0:04:39]} a6 {[%emt 0:10:25]} 15. Nxd5 {[%emt 0:02:32]} cxd5 {[%emt 0:00:14]} 16. Nf4 {[%emt 0:00:04]} Nc6 {[%emt 0:06:33]} 17. Bxd5 {[%emt 0:13:01]} (17. Bd2 $11 {keeps the balance.}) 17... O-O-O $17 {[%emt 0:08:10]} 18. O-O {[%emt 0:16:39]} (18. Bxf7 $2 {loses.} Nxd4 19. O-O Nf3+ 20. Kg2 Nxe5+ 21. Kg1 Nxf7 $19) ({Don't blunder} 18. Be3 $2 g5 19. Bxc6 Bxc6 $19) 18... Nxd4 {[%emt 0:09:08]} 19. Bxb7+ {[%emt 0:02:43]} Kxb7 {[%emt 0:00:04]} 20. Kg2 {[%emt 0:00:05] Inhibits Nf3.} Bc5 {[%emt 0:03:51]} 21. Be3 {[%emt 0:02:44]} Rhe8 {[%emt 0:04:01]} (21... Kc6 $17 {aiming for ...Rhe8.} 22. Rad1 Rhe8) 22. e6 $1 $15 {[%emt 0:00:26][%cal Be5e6,Be6f7][%mdl 32]} g5 $2 {[%emt 0:00:30][%mdl 8192] This move loses the game for Black.} (22... fxe6 $15 {keeps the upper hand.} 23. Nxg6 e5) 23. exf7 $18 {[%emt 0:00:27]} Re5 {[%emt 0:06:29] [#]} (23... Re4 $142) 24. Rad1 $1 {[%emt 0:08:22]} gxf4 {[%emt 0:02:32] [#]} 25. Bxd4 {[%emt 0:00:17]} (25. Rxd4 Bxd4 26. Bxd4 Rf5 $17) 25... f3+ {[%emt 0:01:15]} 26. Kxf3 {[%emt 0:00:58]} Bxd4 {[%emt 0:00:14] [#]} 27. Rxd4 $1 {[%emt 0:00:07][%mdl 4608] Endgame. KRR-KRR} Rf8 {[%emt 0:00:02]} 28. Rf4 {[%emt 0:03:37]} Re7 $2 {[%emt 0:00:37]} (28... Kc8 {was worth a try.} 29. b3 cxb3 30. axb3 h5 31. Rc1+ Kb7) 29. Kg4 {[%emt 0:00:32]} Rfxf7 {[%emt 0:00:57]} 30. Rxf7 {[%emt 0:00:11]} Rxf7 {[%emt 0:00:03] KR-KR} 31. Kh5 {[%emt 0:01:36][%cal Of2f4] Strongly threatening f4!} Rf6 {[%emt 0:01:44]} (31... Kc6 $142 32. Kxh6 Rf3) 32. f4 {[%emt 0:03:22]} Kc6 {[%emt 0:00:11]} 33. g4 {[%emt 0:01:27]} Kd5 {[%emt 0:01:07]} 34. h4 {[%emt 0:00:08][%cal Bh2h4,Bh4g5,Bg5g6,Bg6g7][%mdl 32]} b4 {[%emt 0:00:43]} 35. g5 {[%emt 0:00:15]} hxg5 {[%emt 0:00:01]} 36. hxg5 {[%emt 0:00:06]} Rf8 {[%emt 0:00:40]} 37. g6 {[%emt 0:00:39]} Rh8+ {[%emt 0:01:02]} 38. Kg5 {[%emt 0:00:03]} Rh2 {[%emt 0:00:15]} 39. g7 {[%emt 0:03:44] White mates.} Rg2+ {[%emt 0:00:16]} 40. Kf6 {[%emt 0:00:01]} c3 {[%emt 0:00:16]} 41. bxc3 {[%emt 0:50:16]} bxc3 {[%emt 0:50:04]} 42. f5 {[%emt 0:00:40]} c2 {[%emt 0:00:16]} 43. Rc1 {[%emt 0:00:42] Weighted Error Value: White=0.19 (very precise) /Black=0.63.  Loses game:     	---       	Black=1      Mistake:       	White=1     	Black=4      Inaccurate:     	White=1     	Black=3      OK:         	White=12    	Black=8      Best:        	White=3     	Black=3      Strong:       	White=1     	---        Brilliant:      	White=1     	---} 1-0

[Event "4NCL 2023-2024"]
[Site "Daventry"]
[Date "2024.05.06"]
[Round "11.9"]
[White "Ledger, Andrew J"]
[Black "Adams, Michael"]
[Result "0-1"]
[ECO "D37"]
[WhiteElo "2335"]
[BlackElo "2677"]
[Annotator "TA"]
[PlyCount "56"]
[EventDate "2023.11.11"]
[EventType "team-tourn"]
[EventCountry "ENG"]
[SourceTitle "playchess.com"]
[Source "ChessBase"]
[SourceQuality "1"]
[TimeControl "40/6000+30:3000+30"]

{[%evp 9,56,20,26,4,14,-38,-4,-14,-21,-11,7,8,0,0,10,-106,-102,-97,-107,-154,-110,-105,-105,-103,-94,-191,-200,-185,-193,-206,-137,-225,-246,-603,-626,-588,-578,-565,-550,-808,-768,-995,-982,-969,-972,-925,-908,-998,-979]} 1. Nf3 {[%emt 0:00:05]} d5 {[%emt 0:00:15]} 2. d4 {[%emt 0:00:07]} Nf6 {[%emt 0:00:12]} 3. c4 {[%emt 0:00:10]} e6 {[%emt 0:00:08]} 4. Nc3 {[%emt 0:00:17]} Nbd7 {[%emt 0:00:19]} 5. Bf4 {[%emt 0:01:13]} Bb4 {[%emt 0:00:18]} 6. Qb3 {[%emt 0:05:21]} c5 {[%emt 0:01:42]} 7. dxc5 {[%emt 0:03:34]} (7. e3 $11) 7... a5 {[%emt 0:00:28]} 8. Bd6 {[%emt 0:08:53] The position is equal.} b6 {[%emt 0:14:30]} 9. cxd5 {[%emt 0:07:15]} Nxd5 {[%emt 0:03:06]} 10. e4 {[%emt 0:14:51]} Nxc3 {[%emt 0:01:39]} 11. bxc3 {[%emt 0:01:06]} Bxc5 {[%emt 0:00:35]} 12. Rd1 {[%emt 0:11:16]} (12. Bg3 $11 {keeps the balance.}) 12... Bxd6 $17 {[%emt 0:06:56]} 13. Rxd6 {[%emt 0:00:06]} Qc7 {[%emt 0:08:33]} 14. e5 {[%emt 0:20:00]} (14. Rd1 $142) 14... O-O {[%emt 0:14:20][%cal Od7e5]} 15. Qc4 {[%emt 0:02:33]} Nc5 {[%emt 0:01:38]} 16. Qd4 {[%emt 0:12:05]} Bb7 {[%emt 0:06:32]} 17. Be2 {[%emt 0:03:25] [#]} (17. Bb5 $17) 17... Ne4 $1 $19 {[%emt 0:08:18] White must now prevent ...Rad8.} 18. Rd7 {[%emt 0:01:09] [#]} Qc8 {[%emt 0:00:57]} (18... Qxc3+ 19. Qxc3 Nxc3 20. Rxb7 $18) 19. Bd3 {[%emt 0:02:18] Strongly threatening Rxb7.} Bd5 {[%emt 0:09:16]} 20. Bxe4 {[%emt 0:02:56]} (20. c4 $17 {was worth a try.}) 20... Qxd7 {[%emt 0:02:58]} 21. Bxh7+ $2 {[%emt 0:05:26]} (21. Bxd5 exd5 (21... Qxd5 $2 22. Qxd5 exd5 23. Kd2 $19) 22. O-O) 21... Kxh7 {[%emt 0:01:09] Black is clearly winning.} 22. Qh4+ {[%emt 0:00:06]} Kg8 {[%emt 0:00:27][%cal Od7b5]} 23. Ng5 {[%emt 0:00:06][%csl Gg5][%cal Rh4h7]} Rfc8 {[%emt 0:03:06]} ({Worse is} 23... Bxg2 24. Qh7#) 24. Qh7+ {[%emt 0:00:29]} Kf8 {[%emt 0:00:02][%cal Od7b5] ...Qb5! is the strong threat.} 25. h4 {[%emt 0:03:47]} Qc7 {[%emt 0:02:28]} 26. Rh3 {[%emt 0:01:31]} Qxe5+ {[%emt 0:00:42]} 27. Re3 {[%emt 0:00:06]} Qf6 {[%emt 0:03:44]} 28. Qb1 {[%emt 0:00:52]} Qf5 {[%emt 0:01:20] Weighted Error Value: White=0.65/Black=0.12 (very precise) .  Mistake:       	White=6     	---        Inaccurate:     	White=1     	Black=2      OK:         	White=4     	Black=9      Best:        	White=2     	Black=3} (28... Rxc3 29. Nh7+ (29. Qxb6 {is a self mate.} Rc1+ 30. Kd2 Qxf2+ 31. Re2 Qxb6 32. Nh7+ Ke7 33. Kxc1 Rc8+ 34. Rc2 Qe3+ 35. Kd1 Bf3+ 36. gxf3 Rd8+) 29... Ke7 30. Nxf6 Rxe3+ 31. fxe3 $18) 0-1

[Event "4NCL 2023-2024"]
[Site "Daventry"]
[Date "2024.05.06"]
[Round "11.10"]
[White "Harvey, Marcus R"]
[Black "Gormally, Daniel W"]
[Result "1/2-1/2"]
[ECO "A68"]
[WhiteElo "2484"]
[BlackElo "2419"]
[Annotator "TA"]
[PlyCount "94"]
[EventDate "2023.11.11"]
[EventType "team-tourn"]
[EventCountry "ENG"]
[SourceTitle "playchess.com"]
[Source "ChessBase"]
[SourceQuality "1"]
[TimeControl "40/6000+30:3000+30"]

{[%evp 26,94,15,10,12,-13,-2,-68,-50,-61,-18,-19,-29,-25,-28,-36,-16,-21,-9,-37,-37,-31,0,-62,0,0,0,-37,-36,-39,-35,-29,-32,-29,-29,-29,-29,-31,-33,-29,0,-29,-29,-29,-29,-34,-29,-29,-29,-54,-40,-54,-26,-26,-26,-56,-52,-84,-52,-91,-77,-81,-85,-72,-72,-80,-79,-87,-60,-60,-60]} 1. c4 {[%emt 0:01:21]} Nf6 {[%emt 0:00:31]} 2. Nc3 {[%emt 0:00:21]} g6 {[%emt 0:00:45]} 3. e4 {[%emt 0:00:10]} d6 {[%emt 0:02:07]} 4. d4 {[%emt 0:00:19]} Bg7 {[%emt 0:00:05]} 5. f4 {[%emt 0:00:04]} O-O {[%emt 0:00:54]} 6. Nf3 {[%emt 0:00:03]} c5 {[%emt 0:02:04]} 7. d5 {[%emt 0:00:05]} e6 {[%emt 0:01:23]} 8. Be2 {[%emt 0:01:21]} exd5 {[%emt 0:00:28]} 9. cxd5 {[%emt 0:00:06]} Bg4 {[%emt 0:01:27]} 10. O-O {[%emt 0:01:54]} Nbd7 {[%emt 0:02:12]} 11. h3 {[%emt 0:00:28]} Bxf3 {[%emt 0:01:09]} 12. Bxf3 {[%emt 0:00:07]} a6 {[%emt 0:06:25]} 13. a4 {[%emt 0:02:51]} c4 {[%emt 0:01:47]} 14. Be3 {[%emt 0:08:54]} Rc8 {[%emt 0:02:12]} 15. Qc2 {[%emt 0:06:29]} Nc5 {[%emt 0:09:56]} 16. Rae1 {[%emt 0:20:24]} (16. Bxc5 $11 Rxc5 17. e5 dxe5 18. fxe5) 16... Nd3 {[%emt 0:04:14]} 17. Rb1 {[%emt 0:05:07]} Nd7 {[%emt 0:09:00] Excellent horsemanship.} 18. Be2 {[%emt 0:02:33]} N7c5 {[%emt 0:07:13]} 19. Bxc5 $1 {[%emt 0:02:50]} Nxc5 {[%emt 0:02:58]} 20. Bxc4 {[%emt 0:00:54]} Re8 {[%emt 0:03:09]} 21. Bd3 $1 {[%emt 0:15:04]} Qb6 {[%emt 0:00:39]} 22. Kh1 {[%emt 0:01:36]} Qb4 {[%emt 0:00:07]} 23. Rf3 {[%emt 0:05:33]} Nxa4 {[%emt 0:10:17]} 24. e5 {[%emt 0:02:03]} (24. Qxa4 $11 Bxc3 25. Qd1) 24... Nxc3 {[%emt 0:02:31]} (24... Nc5 $15 25. Rbf1 b5 (25... dxe5 26. fxe5 Bxe5 27. d6 $15)) 25. bxc3 $11 {[%emt 0:01:08]} Qxc3 {[%emt 0:00:14]} 26. Qxc3 {[%emt 0:00:51]} Rxc3 {[%emt 0:00:06]} 27. Rxb7 {[%emt 0:00:05]} dxe5 {[%emt 0:01:59] [#] Hoping for ...e4.} 28. d6 {[%emt 0:01:53]} exf4 {[%emt 0:06:00]} 29. d7 {[%emt 0:03:43]} Rd8 {[%emt 0:01:04]} 30. Bxa6 {[%emt 0:00:26]} Rc1+ {[%emt 0:10:30]} 31. Rf1 {[%emt 0:04:16]} Rxf1+ {[%emt 0:00:16]} 32. Bxf1 $15 {[%emt 0:00:03][%mdl 4096] Endgame. KRB-KRB} Kf8 {[%emt 0:01:50]} 33. Bb5 {[%emt 0:02:32]} Be5 {[%emt 0:01:46]} 34. Bc6 {[%emt 0:07:31]} Ke7 {[%emt 0:00:14]} 35. Rb1 {[%emt 0:00:58]} f6 {[%emt 0:07:19]} 36. Kg1 {[%emt 0:01:42]} Rb8 {[%emt 0:00:21]} 37. Bb5 {[%emt 0:03:22]} Ra8 {[%emt 0:02:09]} 38. Kf2 {[%emt 0:01:42]} Ra3 {[%emt 0:02:35]} 39. Rd1 {[%emt 0:03:20]} Kd8 {[%emt 0:00:08]} 40. Bc6 {[%emt 0:05:37]} Rc3 {[%emt 0:01:59]} 41. Bb7 {[%emt 0:02:53]} Rb3 {[%emt 0:03:12]} 42. Bc8 {[%emt 0:00:37]} Rb2+ {[%emt 0:04:40]} 43. Kf1 {[%emt 0:01:26]} f3 {[%emt 0:02:36]} 44. gxf3 {[%emt 0:00:06] [#]} Rh2 $1 {[%emt 0:00:05]} 45. Bb7 {[%emt 0:16:27]} Rh1+ {[%emt 0:01:07]} 46. Ke2 {[%emt 0:00:07]} Rxd1 {[%emt 0:00:04]} 47. Kxd1 {[%emt 0:00:05]} Kxd7 {[%emt 0:00:02] Weighted Error Value: White=0.15 (very precise) /Black=0.12 (very precise) .  Mistake:       	White=2     	Black=1      Inaccurate:     	White=6     	Black=6      OK:         	White=10    	Black=12     Best:        	White=3     	Black=1      Strong:       	White=2     	Black=1} 1/2-1/2

[Event "4NCL 2023-2024"]
[Site "Daventry"]
[Date "2024.05.06"]
[Round "11.11"]
[White "Bates, Richard A"]
[Black "Murphy, Conor E"]
[Result "1/2-1/2"]
[ECO "E04"]
[WhiteElo "2315"]
[BlackElo "2478"]
[Annotator "TA"]
[PlyCount "96"]
[EventDate "2023.11.11"]
[EventType "team-tourn"]
[EventCountry "ENG"]
[SourceTitle "playchess.com"]
[Source "ChessBase"]
[SourceQuality "1"]
[TimeControl "40/6000+30:3000+30"]

{[%evp 11,96,-2,4,-13,-12,-9,0,-31,-32,-74,-66,-85,-38,-45,-43,-66,-59,-66,-64,-71,-78,-188,-180,-143,-95,-171,-162,-145,-166,-152,-150,-168,-175,-167,-155,-289,-299,-318,-325,-322,-222,-230,-170,-166,-163,-183,-168,-154,-124,-120,-71,-98,-84,-175,-97,-50,-60,-64,-52,-55,-48,-60,-14,-22,-15,-48,-56,-166,-23,-22,-8,-14,-14,-13,-17,-15,-8,-14,-14,-15,-8,-15,-8,-8,0,0,0]} 1. d4 {[%emt 0:00:03]} d5 {[%emt 0:02:56]} 2. c4 {[%emt 0:00:34]} e6 {[%emt 0:00:07]} 3. Nf3 {[%emt 0:00:26]} Nf6 {[%emt 0:00:13]} 4. g3 {[%emt 0:00:18]} dxc4 {[%emt 0:00:16]} 5. Bg2 {[%emt 0:00:47]} Nc6 {[%emt 0:00:20]} 6. O-O {[%emt 0:01:17]} Rb8 {[%emt 0:00:23]} 7. Bg5 {[%emt 0:08:24] E04: Open Catalan: 5 Nf3.} Be7 $1 {[%emt 0:01:26]} 8. e3 {[%emt 0:01:40]} O-O {[%emt 0:05:22]} 9. a4 {[%emt 0:15:52]} b6 {[%emt 0:10:05]} 10. Nbd2 {[%emt 0:09:04]} Ba6 {[%emt 0:10:26]} 11. Qe2 $146 {[%emt 0:03:49][%cal Oa1b1]} ({Predecessor:} 11. Re1 Na5 12. Rc1 c5 13. Bf1 cxd4 14. Nxd4 Bb7 15. Nxc4 Qd5 {0-1 Ponting,A (1388)-Schlenther,M (2419) BI-2012-P-00001}) 11... h6 {[%emt 0:13:11]} (11... Nd5 $17 12. Bxe7 Qxe7 13. Nxc4 Na5) 12. Bxf6 $15 {[%emt 0:04:31]} Bxf6 {[%emt 0:00:31]} 13. Rac1 {[%emt 0:23:25][%cal Of1d1]} Qc8 {[%emt 0:16:48][%cal Oc4c3] ...c3! would now be deadly.} 14. Nxc4 {[%emt 0:03:01]} Na5 {[%emt 0:00:26]} 15. Nfd2 {[%emt 0:01:10]} c5 {[%emt 0:04:03]} 16. d5 {[%emt 0:18:22]} (16. Rfd1 $17 {keeps fighting.}) 16... Bxb2 $19 {[%emt 0:11:02]} 17. Rc2 {[%emt 0:00:40]} Bf6 {[%emt 0:01:01]} ({Better is} 17... exd5 18. Bxd5 Qd7) 18. Qh5 {[%emt 0:02:31]} (18. Bh3 $17) 18... Nxc4 {[%emt 0:05:17]} 19. Nxc4 {[%emt 0:00:12]} exd5 {[%emt 0:04:14]} 20. Bxd5 {[%emt 0:00:36]} Qd7 $36 {[%emt 0:00:26][%mdl 2048] Dodges Nd6. Black is on the roll.} 21. Rfc1 {[%emt 0:03:34]} Bb7 {[%emt 0:02:33]} 22. Bxb7 {[%emt 0:03:09]} Rxb7 {[%emt 0:00:45]} 23. h4 {[%emt 0:00:59]} (23. a5 $17) 23... Qxa4 {[%emt 0:04:11]} 24. g4 {[%emt 0:00:33]} Rd7 {[%emt 0:01:09]} 25. g5 {[%emt 0:00:34]} g6 {[%emt 0:01:41]} 26. Qf3 {[%emt 0:00:21]} Bg7 {[%emt 0:01:55] aiming for ...hxg5.} 27. gxh6 {[%emt 0:00:25]} Bxh6 {[%emt 0:00:29]} 28. h5 {[%emt 0:02:47]} Bg7 {[%emt 0:05:49]} 29. hxg6 {[%emt 0:01:17]} fxg6 {[%emt 0:00:33]} 30. Qe4 {[%emt 0:00:09][%cal Of2f4] [#]} Rdf7 {[%emt 0:01:35]} (30... Bf6 $142 $1 {Threatens to win with ...Rfd8.} 31. f4 Qb3) 31. Qxg6 {[%emt 0:00:32]} Rf6 {[%emt 0:00:49]} 32. Qe4 {[%emt 0:01:31] [#]} (32. Qd3 $17) 32... Qc6 {[%emt 0:01:30]} (32... b5 $1 $19 33. Nd2 Qxe4 (33... Rxf2 34. Rxc5 Rxd2 35. Qe6+ Rf7 36. Rf1 $11) 34. Nxe4 Rg6+ 35. Kf1 c4) 33. Qxc6 $17 {[%emt 0:00:42]} Rxc6 {[%emt 0:00:03]} 34. Rb1 {[%emt 0:01:49]} Rb8 {[%emt 0:00:25]} 35. Ra2 {[%emt 0:00:25]} Rc7 {[%emt 0:01:11]} 36. f4 {[%emt 0:01:03]} Bc3 {[%emt 0:01:16]} (36... Rd8 $15 {might be stronger.}) 37. Kf2 {[%emt 0:00:30]} b5 {[%emt 0:01:16]} 38. Nd6 {[%emt 0:00:44]} b4 {[%emt 0:00:32]} 39. Rc2 {[%emt 0:00:46]} (39. Nc4 $15) 39... Rb6 {[%emt 0:01:15]} (39... Bg7 $19 {And now ...a5 would win.} 40. Kf3 b3) 40. Ne4 $11 {[%emt 0:00:17]} Rh6 {[%emt 0:02:16] ...Rh2+ is the strong threat.} 41. Rcc1 {[%emt 0:09:34]} Bg7 {[%emt 0:15:53]} ({Don't play} 41... Rh2+ 42. Kg3 Rb2 43. Rxb2 (43. Nxc3 bxc3 44. Ra1 c2 $11) 43... Bxb2 44. Rxc5 Rxc5 45. Nxc5) 42. Rxc5 {[%emt 0:06:58]} Rxc5 {[%emt 0:02:36]} 43. Nxc5 {[%emt 0:00:08][%mdl 4096] Endgame. KRB-KRN} a5 {[%emt 0:01:06]} 44. Kf3 {[%emt 0:14:36]} Rb6 {[%emt 0:13:10]} 45. Rb3 {[%emt 0:08:40]} Bf8 {[%emt 0:02:57]} (45... Rb5 $5 46. Na4 $8 Kf7 $11) 46. Na4 $1 {[%emt 0:00:20]} Rd6 {[%emt 0:00:51]} 47. Ke2 {[%emt 0:00:32] Repels Rd1} Kf7 {[%emt 0:01:13]} 48. Rd3 {[%emt 0:00:55]} Rxd3 {[%emt 0:04:21]} 1/2-1/2

[Event "4NCL 2023-2024"]
[Site "Daventry"]
[Date "2024.05.06"]
[Round "11.12"]
[White "Wadsworth, Matthew J"]
[Black "Varney, Zoe"]
[Result "1-0"]
[ECO "A13"]
[WhiteElo "2470"]
[BlackElo "2070"]
[Annotator "TA"]
[PlyCount "97"]
[EventDate "2023.11.11"]
[EventType "team-tourn"]
[EventCountry "ENG"]
[SourceTitle "playchess.com"]
[Source "ChessBase"]
[SourceQuality "1"]
[TimeControl "40/6000+30:3000+30"]

{[%evp 14,97,37,35,34,-12,25,35,72,68,60,29,22,24,22,28,27,20,27,25,37,35,49,35,44,41,38,39,67,57,67,69,66,42,75,41,71,59,166,161,254,235,248,162,140,150,186,194,188,190,196,194,253,238,347,347,327,273,407,343,341,321,320,310,265,269,293,278,335,290,335,308,426,439,442,442,524,524,524,524,517,484,583,570,29995,29996]} 1. c4 {[%emt 0:00:04]} e6 {[%emt 0:00:07]} 2. g3 {[%emt 0:00:12]} d5 {[%emt 0:00:07]} 3. Bg2 {[%emt 0:00:06]} Nf6 {[%emt 0:00:08]} 4. Nf3 {[%emt 0:00:17]} dxc4 {[%emt 0:00:18]} 5. Qa4+ {[%emt 0:00:31]} Nbd7 {[%emt 0:00:14]} 6. Qxc4 {[%emt 0:00:25]} a6 {[%emt 0:00:14]} 7. Qc2 {[%emt 0:00:38]} c5 {[%emt 0:00:48]} 8. Nc3 {[%emt 0:00:24]} Qc7 {[%emt 0:00:25]} 9. d4 {[%emt 0:00:34]} (9. O-O $14 {feels stronger.}) 9... b6 {[%emt 0:14:30]} 10. Bf4 {[%emt 0:00:35]} Bd6 {[%emt 0:08:00] [#] White is slightly better.} 11. Bxd6 $1 {[%emt 0:01:22]} Qxd6 {[%emt 0:00:04]} 12. Ne4 {[%emt 0:00:16]} Nxe4 {[%emt 0:06:29]} 13. Qxe4 {[%emt 0:00:27]} Rb8 {[%emt 0:00:36]} 14. dxc5 {[%emt 0:00:13]} Nxc5 {[%emt 0:10:38]} 15. Qe3 {[%emt 0:00:09]} Bb7 {[%emt 0:01:55]} 16. O-O {[%emt 0:00:09]} O-O {[%emt 0:02:34]} 17. Rfd1 {[%emt 0:00:08]} Qe7 {[%emt 0:01:21]} 18. b4 {[%emt 0:03:35]} Nd7 {[%emt 0:09:57]} 19. Rac1 {[%emt 0:01:42] [#] Black must now prevent Rc7.} Nf6 {[%emt 0:04:45]} 20. a3 {[%emt 0:08:41]} (20. Qxb6 Bxf3 21. Qc5 Qxc5 22. bxc5 Bxg2 (22... Bxe2 $2 23. Rd2 $19) 23. Kxg2 Rb2 $19) 20... Bd5 {[%emt 0:20:49]} 21. Ne5 {[%emt 0:09:40][%cal Bf3e5,Be5c4,Bc4d6][%mdl 32]} Bxg2 {[%emt 0:05:18]} 22. Kxg2 {[%emt 0:00:09]} Qb7+ {[%emt 0:00:10]} 23. Qf3 {[%emt 0:03:51]} Nd5 $1 {[%emt 0:08:19]} 24. Nc4 {[%emt 0:02:08]} f5 {[%emt 0:07:03]} 25. Kg1 {[%emt 0:04:08]} g5 {[%emt 0:05:01]} ({Better is} 25... Rbc8 $14) 26. e4 $36 {[%emt 0:10:46][%mdl 2048] White is on the roll.} Nf6 {[%emt 0:02:29]} (26... fxe4 $142 27. Qxe4 Qf7) 27. Nd6 {[%emt 0:00:50]} fxe4 {[%emt 0:00:31]} 28. Qe3 {[%emt 0:01:27]} Qg7 {[%emt 0:00:43]} 29. Nxe4 {[%emt 0:00:29] White has more active pieces.} Nxe4 {[%emt 0:00:32]} 30. Qxe4 {[%emt 0:00:08]} Rf6 {[%emt 0:00:42]} 31. Rc6 {[%emt 0:04:21]} Rbf8 {[%emt 0:00:06]} 32. Rd2 {[%emt 0:00:43]} (32. Rxb6 $6 Rxf2 33. Qxe6+ (33. Rxe6 Qf7 $11) 33... Kh8) 32... Qf7 {[%emt 0:00:45]} (32... Qb7 {keeps fighting.} 33. Qc2 (33. Rxe6 Qxe4 34. Rxe4 Rf3 $16) 33... Rf5 34. Rxe6 a5) 33. Qe3 {[%emt 0:02:42]} (33. Rxb6 $2 Rxf2 34. Rd1 Rf1+ 35. Kg2 Rxd1 $19) 33... h6 {[%emt 0:00:20]} (33... a5 $142 34. Qxg5+ (34. Rxb6 axb4 35. axb4 h6 $18) 34... Kh8) 34. Qxb6 {[%emt 0:00:53]} Qg6 {[%emt 0:00:42] And now ...Qb1+ would win.} 35. Qe3 {[%emt 0:05:16]} g4 {[%emt 0:00:29]} (35... e5 $142 36. Rxf6 Qxf6) 36. Rcd6 {[%emt 0:03:12]} Qb1+ {[%emt 0:00:45]} 37. Rd1 {[%emt 0:01:11]} Qf5 {[%emt 0:00:04]} 38. Rxa6 {[%emt 0:08:12]} Qxf2+ {[%emt 0:00:37]} 39. Qxf2 {[%emt 0:00:07]} Rxf2 {[%emt 0:00:04][%cal Bf6f2,Bf2a2,Ba2a3,Ba3b3][%mdl 32]} 40. Rxe6 {[%emt 0:01:38][%mdl 4096] Endgame. KRR-KRR} Ra2 {[%emt 0:00:24]} 41. Rf1 {[%emt 0:55:39] Against Rff2} Rc8 {[%emt 0:08:06]} (41... Rxf1+ 42. Kxf1 Kh7 43. Re4 Rxa3 44. Rxg4 Ra1+ 45. Ke2 Ra2+ 46. Kd3 Rxh2 47. Re4) 42. Rxh6 {[%emt 0:00:00]} Rc4 {[%emt 0:08:18]} 43. Rhf6 {[%emt 0:00:00][%cal Bh6f6,Bf6f4,Bf4g4][%mdl 32]} Rxa3 {[%emt 0:05:32]} 44. R6f4 {[%emt 0:00:00]} Rc2 {[%emt 0:00:19]} 45. Rxg4+ {[%emt 0:00:00]} Kh7 {[%emt 0:00:04]} 46. Rf2 {[%emt 0:00:00]} Rc1+ {[%emt 0:01:16]} 47. Kg2 {[%emt 0:00:00]} Rb3 {[%emt 0:00:24]} 48. Kh3 {[%emt 0:00:00]} Rcb1 {[%emt 0:00:37]} 49. Rf5 {[%emt 0:00:00] Weighted Error Value: White=0.13 (very precise) /Black=0.43.  Mistake:       	White=1     	Black=5      Inaccurate:     	White=3     	Black=6      OK:         	White=21    	Black=14     Best:        	White=3     	---        Strong:       	White=1     	Black=1} 1-0